bitfinex-derivatives/quotes_BTCF0:USTF0_20220103
["timestamp","ask_amount","ask_price","bid_price","bid_amount"]
[1641240511136,0.18,46316.0,46315.0,0.14033567]
[1641240511339,0.26692,46316.0,46315.0,0.14033567]
[1641240511536,0.08692,46316.0,46315.0,0.14033567]
[1641240512135,0.26692,46316.0,46315.0,0.14033567]
[1641240512335,0.08692,46316.0,46315.0,0.14033567]
[1641240512537,0.02159383,46324.0,46315.0,0.14033567]
[1641240512737,0.14033567,46325.0,46315.0,0.14033567]
[1641240512939,0.187,46316.0,46315.0,0.14033567]
[1641240514141,0.187,46316.0,46315.0,0.15012967]
[1641240514339,0.14033567,46325.0,46315.0,0.15012967]
[1641240514540,0.14033567,46325.0,46315.0,0.23271967]
[1641240514943,0.31033567,46325.0,46315.0,0.40671967]
[1641240516342,0.14033567,46325.0,46315.0,0.23271967]
[1641240516942,0.32733567,46325.0,46315.0,0.40671967]
[1641240517143,0.32733567,46325.0,46317.0,0.02158929]
[1641240518846,0.14033567,46325.0,46317.0,0.02158929]
[1641240519046,0.32033567,46325.0,46317.0,0.19258929]
[1641240519648,0.32033567,46325.0,46317.0,0.19258931]
[1641240519851,0.18,46318.0,46317.0,0.171]
[1641240520051,0.25796,46318.0,46317.0,0.171]
[1641240520948,0.44896,46318.0,46317.0,0.171]
[1641240521749,1.75296,46318.0,46310.0,0.14033567]
[1641240521953,0.36,46311.0,46306.0,0.14033567]
[1641240522147,0.18,46311.0,46306.0,0.14033567]
[1641240522348,0.18,46307.0,46306.0,0.14033567]
[1641240522549,0.45493,46307.0,46306.0,0.14033567]
[1641240522749,0.45493,46307.0,46296.0,0.02159905]
[1641240522949,0.18,46297.0,46294.0,1.46402938]
[1641240523149,0.24586,46297.0,46294.0,1.46402938]
[1641240523951,0.24586,46297.0,46291.0,0.14033567]
[1641240524151,0.06586,46297.0,46291.0,0.14033567]
[1641240524350,0.18,46293.0,46291.0,0.14033567]
[1641240524750,0.06586,46297.0,46291.0,0.14033567]
[1641240524950,0.187,46293.0,46291.0,0.14033567]
[1641240525153,0.187,46293.0,46292.0,0.001]
[1641240525550,0.367,46293.0,46292.0,0.001]
[1641240525753,0.367,46293.0,46291.0,0.14033567]
[1641240526152,0.18,46292.0,46291.0,0.14033567]
[1641240527054,0.185,46292.0,46291.0,0.14033567]
[1641240528354,0.75427703,46307.0,46291.0,0.16193332]
[1641240528555,0.75427703,46301.0,46291.0,0.24033332]
[1641240528753,0.75427703,46301.0,46292.0,0.009794]
[1641240528955,0.75427703,46301.0,46292.0,0.333889]
[1641240529353,0.75427703,46301.0,46297.0,0.001]
[1641240529555,0.75427703,46301.0,46300.0,0.14133567]
[1641240529754,0.18,46307.0,46300.0,0.14133567]
[1641240529955,0.18,46307.0,46305.0,0.001]
[1641240530256,0.75427703,46314.0,46306.0,0.03238745]
[1641240530455,0.75427703,46314.0,46306.0,0.009794]
[1641240530655,0.75427703,46314.0,46306.0,0.33242]
[1641240531055,0.70127703,46313.0,46312.0,0.02159163]
[1641240531458,0.88127703,46313.0,46308.0,0.009794]
[1641240531654,0.18,46309.0,46308.0,0.009794]
[1641240533257,0.364,46309.0,46308.0,0.196794]
[1641240533462,0.009794,46308.0,46295.0,1.45423538]
[1641240533660,1.18100701,46296.0,46295.0,1.45423538]
[1641240533866,2.9129395,46296.0,46291.0,1.38923538]
[1641240534059,1.485,46292.0,46291.0,1.38923538]
[1641240534260,1.484,46292.0,46291.0,1.38923538]
[1641240534459,2.348978,46292.0,46291.0,0.9571298]
[1641240534660,2.564078,46292.0,46291.0,0.9571298]
[1641240535059,2.746078,46292.0,46291.0,0.05656522]
[1641240535261,2.746078,46292.0,46284.0,1.56274936]
[1641240535262,3.247078,46292.0,46284.0,1.56274936]
[1641240535460,3.247078,46292.0,46279.0,0.60220615]
[1641240535461,3.3991,46285.0,46279.0,0.60220615]
[1641240535660,0.0527,46278.0,46250.0,0.44138887]
[1641240535860,0.36,46251.0,46250.0,0.23728887]
[1641240536059,0.27325962,46251.0,46250.0,0.23728887]
[1641240536262,0.07263,46251.0,46250.0,0.23728887]
[1641240536459,0.07263,46251.0,46245.0,1.70838855]
[1641240536659,0.07163,46251.0,46246.0,0.009794]
[1641240537060,0.186,46251.0,46247.0,0.01220991]
[1641240537662,0.186,46251.0,46250.0,0.14033567]
[1641240538261,0.366,46251.0,46250.0,0.14033567]
[1641240538461,0.18,46251.0,46250.0,0.14033567]
[1641240539163,0.364,46251.0,46250.0,0.14033567]
[1641240539962,0.365,46251.0,46250.0,0.14033567]
[1641240540165,0.364,46251.0,46250.0,0.14033567]
[1641240540563,0.18,46253.0,46250.0,0.14033567]
[1641240541164,0.185,46253.0,46250.0,0.14033567]
[1641240541867,0.18,46252.0,46250.0,0.14033567]
[1641240542469,0.18,46256.0,46250.0,0.14033567]
[1641240542668,0.18,46252.0,46250.0,0.14033567]
[1641240543069,0.184,46252.0,46250.0,0.14033567]
[1641240543270,0.20162881,46251.0,46250.0,0.14033567]
[1641240543471,0.20162881,46251.0,46241.0,0.14033567]
[1641240543671,0.18,46242.0,46241.0,0.14033567]
[1641240543869,0.24993,46242.0,46241.0,0.14033567]
[1641240544470,0.06993,46242.0,46241.0,0.14033567]
[1641240545170,0.04314,46242.0,46241.0,0.16295904]
[1641240545371,0.18,46253.0,46241.0,0.16295904]
[1641240545573,0.18,46253.0,46241.0,0.24557904]
[1641240545771,0.02162619,46255.0,46251.0,0.14033567]
[1641240545972,0.2016277,46252.0,46251.0,0.14033567]
[1641240546375,0.2026277,46252.0,46251.0,0.14033567]
[1641240546771,0.2016277,46252.0,46251.0,0.14033567]
[1641240546972,0.2026277,46252.0,46251.0,0.14033567]
[1641240547175,0.3866277,46252.0,46251.0,0.14033567]
[1641240547376,0.5676277,46252.0,46251.0,0.14033567]
[1641240547581,0.3876277,46252.0,46251.0,0.14033567]
[1641240547781,0.5676277,46252.0,46241.0,0.14033567]
[1641240547983,0.18,46248.0,46241.0,0.14033567]
[1641240548181,0.2674777,46252.0,46241.0,0.14033567]
[1641240548384,0.18,46247.0,46241.0,0.14033567]
[1641240549182,0.169,46247.0,46241.0,0.31633567]
[1641240549384,0.02162592,46256.0,46243.0,0.02162355]
[1641240549582,0.18,46253.0,46243.0,0.08891355]
[1641240549783,0.02162592,46256.0,46252.0,0.14033567]
[1641240549988,1.6301927,46261.0,46252.0,0.15012967]
[1641240550582,1.8101927,46268.0,46252.0,0.17174895]
[1641240551184,1.8101927,46268.0,46252.0,0.36274895]
[1641240551384,1.6301927,46268.0,46252.0,0.36274895]
[1641240551583,1.6301927,46268.0,46253.0,0.324323]
[1641240551886,1.6301927,46268.0,46261.0,0.14033567]
[1641240552084,0.18,46262.0,46261.0,0.14033567]
[1641240553186,0.18,46262.0,46261.0,0.32133567]
[1641240553887,0.18,46262.0,46261.0,0.05095255]
[1641240554088,0.32033567,46267.0,46261.0,0.05095255]
[1641240554287,0.32033567,46267.0,46261.0,0.11624255]
[1641240554288,0.14033567,46267.0,46261.0,0.11624255]
[1641240554487,0.14033567,46267.0,46261.0,0.06529]
[1641240555095,0.31033567,46267.0,46261.0,0.23729]
[1641240555689,0.45067134,46267.0,46261.0,0.23729]
[1641240556387,0.28067134,46267.0,46261.0,0.06529]
[1641240557089,0.44867134,46267.0,46261.0,0.23529]
[1641240557490,0.18,46262.0,46261.0,0.23529]
[1641240558488,0.18,46262.0,46261.0,0.06529]
[1641240558691,0.21873553,46269.0,46252.0,0.28067134]
[1641240558891,0.15465962,46278.0,46261.0,0.02161308]
[1641240559191,1.6301927,46272.0,46261.0,0.27504]
[1641240559490,1.6301927,46272.0,46262.0,0.009794]
[1641240559692,1.8101927,46272.0,46271.0,0.14033567]
[1641240559889,1.8101927,46272.0,46271.0,0.21794567]
[1641240560293,0.18,46272.0,46271.0,0.21794567]
[1641240560491,1.124,46278.0,46271.0,0.21794567]
[1641240560492,0.02161776,46273.0,46271.0,0.21794567]
[1641240561198,0.20961776,46273.0,46271.0,0.21794567]
[1641240561591,0.188,46273.0,46271.0,0.21794567]
[1641240561791,0.18,46272.0,46259.0,0.02161605]
[1641240561991,0.18,46263.0,46258.0,0.14033567]
[1641240563191,0.18,46268.0,46258.0,0.14033567]
[1641240563391,0.0786,46273.0,46258.0,0.14033567]
[1641240563392,0.18,46259.0,46258.0,0.14033567]
[1641240563591,0.24916,46259.0,46258.0,0.14033567]
[1641240563993,0.24916,46259.0,46252.0,0.1619552]
[1641240564193,0.06916,46259.0,46252.0,0.14033567]
[1641240564393,0.18,46254.0,46252.0,0.14033567]
[1641240565193,0.18,46254.0,46252.0,0.33033567]
[1641240565394,0.06916,46259.0,46252.0,0.33033567]
[1641240565598,0.14033567,46267.0,46256.0,0.02161762]
[1641240565994,0.14033567,46267.0,46254.0,0.05785]
[1641240566195,0.32033567,46267.0,46254.0,0.05785]
[1641240566394,0.14033567,46267.0,46254.0,0.05785]
[1641240566796,0.14033567,46267.0,46256.0,0.02161775]
[1641240566797,1.15745222,46257.0,46256.0,0.02161775]
[1641240566999,1.15745222,46257.0,46252.0,0.14033567]
[1641240567196,1.15745222,46257.0,46254.0,0.191]
[1641240567898,1.15745222,46258.0,46256.0,0.02161675]
[1641240568300,1.15745222,46258.0,46254.0,0.191]
[1641240568498,1.15745222,46258.0,46253.0,0.16195474]
[1641240569199,1.15745222,46259.0,46253.0,0.35195474]
[1641240570401,1.15745222,46261.0,46253.0,0.35195474]
[1641240570606,1.15745222,46261.0,46254.0,0.009794]
[1641240571202,1.15745222,46261.0,46254.0,0.198794]
[1641240571402,0.32033567,46267.0,46254.0,0.198794]
[1641240571403,1.15745222,46262.0,46254.0,0.198794]
[1641240572003,1.15745222,46262.0,46255.0,0.323636]
[1641240572203,1.15745222,46263.0,46257.0,0.61013635]
[1641240572404,0.18,46260.0,46257.0,0.61013635]
[1641240573004,1.15745222,46263.0,46257.0,0.61013635]
[1641240573206,1.15745222,46263.0,46257.0,0.79713635]
[1641240573403,1.15745222,46262.0,46257.0,0.187]
[1641240574604,1.15745222,46263.0,46257.0,0.61013635]
[1641240574906,0.14033567,46267.0,46262.0,0.001]
[1641240575204,0.14033567,46267.0,46266.0,0.001]
[1641240575607,0.14033567,46276.0,46266.0,0.10321701]
[1641240575809,0.18,46280.0,46272.0,0.14033567]
[1641240576007,0.14033567,46282.0,46272.0,0.14033567]
[1641240576205,1.03256392,46276.0,46272.0,0.14033567]
[1641240576405,1.03256392,46276.0,46274.0,0.0216093]
[1641240576604,1.03256392,46276.0,46272.0,0.14033567]
[1641240576811,1.21256392,46276.0,46272.0,0.14033567]
[1641240577007,1.03256392,46276.0,46272.0,0.14033567]
[1641240577306,1.27329392,46276.0,46272.0,0.30333567]
[1641240577707,0.18,46275.0,46272.0,0.30333567]
[1641240578007,0.06073,46276.0,46272.0,0.30333567]
[1641240578207,0.24073,46276.0,46272.0,0.30333567]
[1641240578409,0.18,46276.0,46272.0,0.30333567]
[1641240578608,0.18,46276.0,46272.0,0.14033567]
[1641240579208,0.368,46276.0,46272.0,0.14033567]
[1641240580511,0.18,46276.0,46272.0,0.14033567]
[1641240581114,0.0216139,46281.0,46272.0,0.14033567]
[1641240581320,0.18,46280.0,46272.0,0.14033567]
[1641240581512,0.18,46273.0,46272.0,0.14033567]
[1641240581713,0.18,46273.0,46267.0,0.14033567]
[1641240581911,0.18,46268.0,46262.0,0.14033567]
[1641240582113,0.0753,46268.0,46264.0,0.61010458]
[1641240582314,0.18,46265.0,46264.0,0.61010458]
[1641240583118,0.4428,46265.0,46264.0,0.61010458]
[1641240583312,0.4458,46265.0,46264.0,0.72810458]
[1641240583715,0.2658,46265.0,46264.0,0.72810458]
[1641240583912,0.2658,46265.0,46264.0,0.118]
[1641240584513,0.0828,46265.0,46260.0,0.61010458]
[1641240584713,0.18,46263.0,46260.0,0.61010458]
[1641240584915,0.18,46263.0,46255.0,0.61010458]
[1641240585314,0.364,46263.0,46260.0,0.013]
[1641240586115,0.184,46263.0,46260.0,0.013]
[1641240586717,0.184,46263.0,46262.0,0.02161489]
[1641240587117,0.32033567,46272.0,46262.0,0.02161489]
[1641240587921,0.14033567,46272.0,46266.0,0.14033567]
[1641240588117,0.06,46267.0,46266.0,0.14033567]
[1641240588318,0.18,46267.0,46266.0,0.14033567]
[1641240588517,0.32033567,46272.0,46266.0,0.14033567]
[1641240589219,0.32033567,46272.0,46266.0,0.33033567]
[1641240589418,0.32033567,46272.0,46267.0,0.009794]
[1641240589620,0.14033567,46272.0,46267.0,0.009794]
[1641240589819,0.36,46268.0,46266.0,0.19]
[1641240590420,0.18,46267.0,46266.0,0.19]
[1641240590822,0.20162078,46267.0,46249.0,1.48587177]
[1641240591021,0.18,46254.0,46249.0,1.48587177]
[1641240591222,0.24051,46254.0,46249.0,1.48587177]
[1641240591820,0.24051,46254.0,46249.0,0.02162078]
[1641240592222,0.06051,46254.0,46249.0,0.02162078]
[1641240592522,0.18,46257.0,46249.0,0.02162078]
[1641240593126,0.14033567,46263.0,46249.0,0.02162078]
[1641240593127,0.18,46254.0,46249.0,0.02162078]
[1641240593323,0.166,46257.0,46253.0,0.46367134]
[1641240593924,0.346,46257.0,46253.0,0.46367134]
[1641240594127,0.166,46257.0,46253.0,0.46367134]
[1641240594323,0.166,46257.0,46256.0,0.02161606]
[1641240594522,0.18,46263.0,46256.0,0.02161606]
[1641240594722,0.18,46268.0,46256.0,0.02161606]
[1641240595124,0.18,46259.0,46256.0,0.02161606]
[1641240595322,0.12,46259.0,46257.0,0.01220867]
[1641240595522,0.18,46259.0,46257.0,0.01220867]
[1641240595924,0.18,46259.0,46258.0,0.14033567]
[1641240596124,0.16195377,46272.0,46258.0,0.14033567]
[1641240596336,0.16195377,46272.0,46259.0,0.18]
[1641240596728,0.18,46260.0,46258.0,0.14033567]
[1641240597025,0.26415,46260.0,46250.0,0.02162019]
[1641240597226,0.18,46254.0,46247.0,1.46425099]
[1641240597724,0.18,46254.0,46248.0,0.01221051]
[1641240597925,0.32033567,46257.0,46248.0,0.01221051]
[1641240598725,0.18,46252.0,46248.0,0.01221051]
[1641240599329,0.18,46252.0,46248.0,0.20421051]
[1641240599727,0.25721,46252.0,46248.0,0.20421051]
[1641240599926,0.25721,46252.0,46248.0,0.192]
[1641240600329,0.021628,46251.0,46248.0,0.192]
[1641240600727,0.07721,46252.0,46247.0,0.14033567]
[1641240600928,0.02162623,46255.0,46247.0,0.14033567]
[1641240601329,0.02162623,46255.0,46247.0,0.33533567]
[1641240601530,0.18,46253.0,46247.0,0.33533567]
[1641240602528,0.14033567,46257.0,46247.0,0.33533567]
[1641240602729,0.18,46253.0,46247.0,0.14033567]
[1641240603131,0.18,46256.0,46247.0,0.14033567]
[1641240603330,0.14033567,46257.0,46247.0,0.33133567]
[1641240603531,0.14033567,46257.0,46248.0,0.02162153]
[1641240604944,0.14033567,46257.0,46248.0,0.20162153]
[1641240605344,0.14033567,46257.0,46248.0,0.39062153]
[1641240605544,0.14033567,46257.0,46248.0,0.21062153]
[1641240606744,0.14033567,46257.0,46248.0,0.02162153]
[1641240607150,0.14033567,46257.0,46253.0,0.02161906]
[1641240607345,0.14033567,46262.0,46256.0,0.18]
[1641240607546,0.14033567,46262.0,46260.0,0.18]
[1641240607745,1.03256392,46270.0,46260.0,0.0745]
[1641240609247,1.03256392,46270.0,46260.0,0.4465]
[1641240609651,0.14033567,46272.0,46260.0,0.4465]
[1641240609948,0.14033567,46272.0,46265.0,0.14033567]
[1641240610748,0.14033567,46272.0,46266.0,0.009794]
[1641240611349,0.14033567,46272.0,46266.0,0.199794]
[1641240612151,0.02161367,46282.0,46266.0,0.199794]
[1641240612449,0.12205884,46281.0,46273.0,0.20160946]
[1641240612648,0.12205884,46281.0,46277.0,0.18]
[1641240612850,1.03256392,46283.0,46280.0,0.001]
[1641240613048,1.03256392,46283.0,46282.0,0.001]
[1641240613850,1.03256392,46284.0,46282.0,0.001]
[1641240614149,1.03256392,46284.0,46283.0,0.34293928]
[1641240614348,1.40133983,46291.0,46283.0,0.61854845]
[1641240614549,1.40133983,46291.0,46287.0,0.18]
[1641240614752,0.14033567,46300.0,46288.0,0.009794]
[1641240614953,0.14033567,46300.0,46288.0,0.330075]
[1641240615152,1.20504411,46294.0,46288.0,0.330075]
[1641240615351,1.20504411,46294.0,46288.0,0.199794]
[1641240616153,0.14033567,46300.0,46293.0,0.14033567]
[1641240616351,0.18,46297.0,46293.0,0.14033567]
[1641240616751,0.14033567,46300.0,46293.0,0.14033567]
[1641240616752,0.18,46294.0,46293.0,0.14033567]
[1641240616953,0.09027,46296.0,46293.0,0.14033567]
[1641240617356,0.18,46294.0,46293.0,0.32033567]
[1641240617552,0.02160775,46295.0,46293.0,0.32033567]
[1641240618053,0.02160775,46295.0,46293.0,0.18]
[1641240618753,0.02160775,46295.0,46288.0,0.14033567]
[1641240619155,0.67449079,46292.0,46288.0,0.14033567]
[1641240619354,0.02160775,46295.0,46288.0,0.32733567]
[1641240620554,0.18,46292.0,46288.0,0.32733567]
[1641240620752,0.18,46289.0,46283.0,0.15012967]
[1641240620954,0.18,46289.0,46283.0,0.14033567]
[1641240621360,0.20161173,46286.0,46283.0,0.14033567]
[1641240621754,0.001,46284.0,46283.0,0.14033567]
[1641240622556,0.02161173,46286.0,46283.0,0.14033567]
[1641240622754,0.16194557,46290.0,46283.0,0.14033567]
[1641240623358,0.18,46288.0,46283.0,0.32033567]
[1641240623555,0.18,46284.0,46283.0,0.32033567]
[1641240623954,0.001,46284.0,46283.0,0.32033567]
[1641240624558,0.001,46284.0,46283.0,0.14033567]
[1641240624954,0.18,46288.0,46283.0,0.14033567]
[1641240625354,0.18,46288.0,46283.0,0.31933567]
[1641240626554,0.18,46288.0,46283.0,0.14033567]
[1641240627155,0.16194557,46290.0,46283.0,0.14033567]
[1641240627357,0.28194557,46290.0,46283.0,0.31233567]
[1641240627656,0.18,46285.0,46283.0,0.31233567]
[1641240628657,0.18,46285.0,46283.0,0.14033567]
[1641240629257,0.18,46284.0,46283.0,0.14033567]
[1641240629457,0.18,46287.0,46283.0,0.30533567]
[1641240629656,0.34194557,46290.0,46283.0,0.30533567]
[1641240629858,0.001,46284.0,46283.0,0.30533567]
[1641240630262,0.34194557,46290.0,46283.0,0.30533567]
[1641240630459,0.18,46287.0,46283.0,0.30533567]
[1641240630659,0.18,46287.0,46283.0,0.14033567]
[1641240631059,0.34194557,46290.0,46283.0,0.14033567]
[1641240631459,0.34194557,46290.0,46283.0,0.30933567]
[1641240631661,1.46594557,46290.0,46283.0,0.30933567]
[1641240631861,0.34194557,46290.0,46283.0,0.30933567]
[1641240632261,0.001,46284.0,46283.0,0.30933567]
[1641240632561,0.34194557,46290.0,46283.0,0.30933567]
[1641240632768,0.001,46284.0,46283.0,0.14033567]
[1641240633462,0.62784213,46290.0,46283.0,0.31533567]
[1641240633663,0.001,46284.0,46283.0,0.31533567]
[1641240634061,0.62784213,46290.0,46283.0,0.31533567]
[1641240634263,0.001,46284.0,46283.0,0.31533567]
[1641240634461,0.62784213,46290.0,46283.0,0.31533567]
[1641240634662,0.001,46284.0,46283.0,0.14033567]
[1641240634864,1.05602725,46291.0,46283.0,0.15012967]
[1641240635062,1.05602725,46291.0,46286.0,0.18]
[1641240635265,1.05602725,46291.0,46290.0,0.001]
[1641240635462,1.05602725,46291.0,46290.0,0.06337]
[1641240635862,1.05602725,46293.0,46290.0,0.06337]
[1641240636463,1.05602725,46293.0,46292.0,0.14033567]
[1641240637267,0.02160454,46301.0,46292.0,0.14033567]
[1641240637466,0.02160454,46301.0,46292.0,0.32833567]
[1641240637665,0.32033567,46300.0,46292.0,0.32833567]
[1641240638666,0.32033567,46300.0,46292.0,0.14033567]
[1641240639466,0.32033567,46300.0,46292.0,0.32533567]
[1641240639867,0.32033567,46300.0,46292.0,0.185]
[1641240640072,1.44433567,46300.0,46292.0,0.185]
[1641240640268,0.18,46293.0,46292.0,0.185]
[1641240640768,0.18,46293.0,46283.0,0.14033567]
[1641240640969,0.02160808,46294.0,46283.0,0.14033567]
[1641240641369,0.20160808,46294.0,46283.0,0.32933567]
[1641240641668,0.8191974,46294.0,46283.0,0.32933567]
[1641240641867,0.8191974,46294.0,46284.0,0.009794]
[1641240642269,0.14033567,46295.0,46284.0,0.009794]
[1641240642670,0.14033567,46295.0,46284.0,0.189794]
[1641240642870,0.32033567,46295.0,46284.0,0.009794]
[1641240643072,0.14033567,46295.0,46284.0,0.009794]
[1641240643370,0.16194339,46295.0,46284.0,0.198794]
[1641240644271,0.16194339,46295.0,46284.0,0.267424]
[1641240644873,0.16194339,46295.0,46284.0,0.078424]
[1641240645073,0.18,46293.0,46284.0,0.078424]
[1641240645373,0.18,46293.0,46284.0,0.268424]
[1641240646377,0.06,46293.0,46284.0,0.268424]
[1641240646679,0.18,46293.0,46284.0,0.078424]
[1641240647079,0.14033567,46295.0,46284.0,0.078424]
[1641240647480,0.14033567,46295.0,46284.0,0.267424]
[1641240648681,0.14033567,46295.0,46284.0,0.078424]
[1641240649082,0.18,46293.0,46284.0,0.078424]
[1641240649281,0.16194313,46295.0,46284.0,0.078424]
[1641240649482,0.16194313,46295.0,46284.0,0.268424]
[1641240649682,0.18,46294.0,46284.0,0.268424]
[1641240649882,0.14033567,46295.0,46284.0,0.268424]
[1641240651282,0.14033567,46295.0,46284.0,0.448424]
[1641240651483,0.14033567,46295.0,46284.0,0.457424]
[1641240651484,0.18,46291.0,46284.0,0.457424]
[1641240651684,0.18,46288.0,46284.0,0.379]
[1641240651882,0.25385,46288.0,46284.0,0.379]
[1641240652283,0.001,46285.0,46284.0,0.379]
[1641240652483,0.14033567,46287.0,46284.0,0.379]
[1641240652697,0.14033567,46287.0,46280.0,0.14033567]
[1641240653496,0.14033567,46287.0,46280.0,0.31833567]
[1641240654702,0.14033567,46287.0,46280.0,0.14033567]
[1641240655103,0.32033567,46287.0,46280.0,0.14033567]
[1641240655502,0.14033567,46287.0,46280.0,0.32033567]
[1641240656502,0.32033567,46287.0,46280.0,0.32033567]
[1641240656903,0.32033567,46287.0,46280.0,0.14033567]
[1641240657104,0.14033567,46287.0,46280.0,0.14033567]
[1641240657504,0.14033567,46287.0,46280.0,0.32133567]
[1641240658905,0.14033567,46287.0,46280.0,0.14033567]
[1641240659106,0.14033567,46287.0,46280.0,0.20775567]
[1641240659506,0.14033567,46287.0,46280.0,0.38975567]
[1641240660707,0.14033567,46287.0,46280.0,0.20775567]
[1641240661509,0.14033567,46287.0,46280.0,0.38975567]
[1641240662109,0.18,46286.0,46280.0,0.38975567]
[1641240662310,0.14033567,46287.0,46280.0,0.38975567]
[1641240662510,0.14033567,46287.0,46280.0,0.56975567]
[1641240662711,0.02160768,46295.0,46284.0,0.18]
[1641240662912,1.6409451,46298.0,46286.0,0.02160295]
[1641240663309,0.12202856,46297.0,46286.0,0.02160295]
[1641240663510,0.12202856,46297.0,46286.0,0.20960295]
[1641240663712,0.12202856,46297.0,46286.0,0.38960295]
[1641240664211,1.6409451,46298.0,46286.0,0.20960295]
[1641240664412,1.05602725,46295.0,46286.0,0.20960295]
[1641240664611,1.05602725,46295.0,46290.0,0.14033567]
[1641240664811,1.05602725,46295.0,46290.0,0.22951567]
[1641240665510,1.05602725,46295.0,46290.0,0.41851567]
[1641240666316,1.05602725,46295.0,46294.0,0.001]
[1641240666516,1.05602725,46295.0,46290.0,0.41851567]
[1641240666714,0.18,46303.0,46290.0,0.22951567]
[1641240667516,0.18,46303.0,46290.0,0.41951567]
[1641240668114,0.16193862,46305.0,46290.0,0.41951567]
[1641240668315,0.16193862,46305.0,46294.0,0.18]
[1641240668516,0.14033567,46305.0,46297.0,0.18]
[1641240669516,0.12200925,46304.0,46297.0,0.369]
[1641240669916,0.12200925,46304.0,46297.0,0.189]
[1641240670316,0.06930925,46304.0,46297.0,0.189]
[1641240670719,0.06930925,46304.0,46296.0,0.14033567]
[1641240671520,0.06930925,46304.0,46296.0,0.33133567]
[1641240672717,0.06930925,46304.0,46296.0,0.14033567]
[1641240673519,0.06930925,46304.0,46296.0,0.33133567]
[1641240674520,0.06930925,46304.0,46297.0,0.18]
[1641240674923,0.06930925,46304.0,46297.0,0.505337]
[1641240675121,0.06930925,46304.0,46297.0,0.18]
[1641240675523,0.06930925,46304.0,46297.0,0.369]
[1641240675724,0.06930925,46304.0,46297.0,0.189]
[1641240676726,0.06930925,46304.0,46296.0,0.14033567]
[1641240677526,0.06930925,46304.0,46296.0,0.32933567]
[1641240677726,0.18,46302.0,46296.0,0.32933567]
[1641240677927,0.24279,46302.0,46296.0,0.189]
[1641240678129,0.02160589,46299.0,46296.0,0.189]
[1641240678728,0.14033567,46299.0,46290.0,0.14033567]
[1641240679428,0.14033567,46299.0,46290.0,0.32933567]
[1641240679828,0.02160707,46296.0,46290.0,0.32933567]
[1641240680728,0.02160707,46296.0,46290.0,0.14033567]
[1641240681327,0.14033567,46299.0,46290.0,0.14033567]
[1641240681529,0.14033567,46299.0,46290.0,0.33912967]
[1641240683329,0.14033567,46299.0,46290.0,0.15012967]
[1641240683530,0.14033567,46299.0,46290.0,0.34012967]
[1641240684436,0.14033567,46305.0,46292.0,0.46147665]
[1641240684632,0.14033567,46305.0,46295.0,0.14033567]
[1641240685431,0.14033567,46305.0,46295.0,0.32933567]
[1641240686434,0.14033567,46305.0,46296.0,0.18]
[1641240686636,0.14033567,46310.0,46297.0,0.28496955]
[1641240686832,0.32033567,46310.0,46296.0,0.009794]
[1641240687034,0.12200145,46309.0,46296.0,0.009794]
[1641240687436,0.12200145,46309.0,46296.0,0.201794]
[1641240688032,0.18,46305.0,46296.0,0.201794]
[1641240688233,0.02160392,46303.0,46296.0,0.201794]
[1641240688733,0.14033567,46302.0,46296.0,0.009794]
[1641240689532,0.14033567,46302.0,46296.0,0.196794]
[1641240690333,0.14033567,46302.0,46296.0,0.376794]
[1641240690535,1.66254646,46308.0,46296.0,0.376794]
[1641240690732,1.6409451,46308.0,46300.0,0.14033567]
[1641240691335,1.6409451,46309.0,46300.0,0.14033567]
[1641240691535,1.6409451,46309.0,46300.0,0.32833567]
[1641240691938,0.14033567,46310.0,46300.0,0.32833567]
[1641240692137,0.12199876,46308.0,46300.0,0.32833567]
[1641240692339,0.12199876,46309.0,46300.0,0.32833567]
[1641240692736,0.12199876,46309.0,46300.0,0.14033567]
[1641240693537,0.12199876,46309.0,46300.0,0.32933567]
[1641240694738,0.12199876,46309.0,46300.0,0.14033567]
[1641240695539,0.12199876,46309.0,46300.0,0.33633567]
[1641240696939,0.12199876,46309.0,46300.0,0.14033567]
[1641240697541,0.12199876,46309.0,46300.0,0.33633567]
[1641240697940,0.30199876,46309.0,46300.0,0.33633567]
[1641240698240,0.20160271,46305.0,46300.0,0.33633567]
[1641240698540,0.18,46301.0,46300.0,0.33633567]
[1641240698739,0.12199876,46304.0,46300.0,0.33633567]
[1641240698938,0.12199876,46304.0,46300.0,0.14033567]
[1641240699340,0.12199876,46305.0,46300.0,0.14033567]
[1641240699540,0.02160243,46306.0,46300.0,0.193]
[1641240700241,0.12200582,46305.0,46300.0,0.193]
[1641240700841,0.14033567,46304.0,46296.0,0.009794]
[1641240701355,0.14033567,46304.0,46295.0,0.14033567]
[1641240701557,0.14033567,46304.0,46296.0,0.197]
[1641240702755,0.14033567,46304.0,46296.0,0.009794]
[1641240703455,0.14033567,46304.0,46296.0,0.204794]
[1641240704357,0.14033567,46304.0,46296.0,0.195]
[1641240704757,0.14033567,46304.0,46290.0,0.14033567]
[1641240705059,0.14033567,46304.0,46292.0,0.009794]
[1641240705459,0.14033567,46304.0,46293.0,0.323797]
[1641240705858,0.14033567,46304.0,46292.0,0.009794]
[1641240706860,0.14033567,46304.0,46295.0,0.34325053]
[1641240707060,0.14033567,46304.0,46296.0,2.33325898]
[1641240707257,0.14033567,46304.0,46296.0,2.65894198]
[1641240708061,0.14033567,46304.0,46296.0,2.33325898]
[1641240708961,0.14033567,46304.0,46298.0,0.14033567]
[1641240709563,0.14033567,46304.0,46298.0,0.33733567]
[1641240710861,0.14033567,46304.0,46298.0,0.14033567]
[1641240711462,0.14033567,46304.0,46298.0,0.33733567]
[1641240712562,0.16193672,46309.0,46298.0,0.33733567]
[1641240712765,0.18,46305.0,46298.0,0.33733567]
[1641240712963,0.07229,46305.0,46298.0,0.14033567]
[1641240713163,0.09389306,46305.0,46298.0,0.14033567]
[1641240713462,0.18,46300.0,46298.0,0.33533567]
[1641240713664,0.09389306,46305.0,46298.0,0.195]
[1641240713665,0.02160389,46303.0,46298.0,0.195]
[1641240714162,0.07229,46305.0,46298.0,0.195]
[1641240714963,0.14033567,46301.0,46292.0,0.009794]
[1641240715366,0.14033567,46301.0,46292.0,0.34280982]
[1641240715563,0.14033567,46301.0,46293.0,0.324554]